fUSD/lending_fUSD_20251011
["ID","MTS","AMOUNT","RATE_DAILY","PERIOD"]
[390807557,1760167779938,-400.0,0.0003,120]
[390807558,1760167779966,-317.53969738,0.0003,30]
[390807559,1760167779995,-1978.01081304,0.0003,120]
[390807560,1760167780022,-2729.98130554,0.0003,90]
[390807561,1760167780051,-307.49922855,0.0003,120]
[390807562,1760167780080,-161.03619663,0.0003,120]
[390807563,1760167780109,-1000.0,0.0003,120]
[390807564,1760167780138,-500.0,0.0003,120]
[390807565,1760167780167,-500.0,0.0003,120]
[390807566,1760167780194,-250000.0,0.0003,30]
[390807567,1760167780223,-1500.0,0.0003,120]
[390807568,1760167780252,-11809.0,0.0003,36]
[390807569,1760167780280,-73729.31532572,0.000301,30]
[390807570,1760167780310,-1000.0,0.00030136,120]
[390807571,1760167780339,-1000.0,0.00030136,120]
[390807572,1760167780366,-850.0,0.00030136,120]
[390807573,1760167780395,-500.0,0.00030136,120]
[390807574,1760167780427,-629.10263304,0.00030136,120]
[390807575,1760167780456,-520.67,0.00030136,120]
[390807576,1760167780484,-1000.0,0.00030137,30]
[390807577,1760167780512,-1000.0,0.00030137,30]
[390807578,1760167780540,-1000.0,0.00030137,30]
[390807579,1760167780567,-1000.0,0.00030137,30]
[390807580,1760167780597,-1000.0,0.00030137,30]
[390807581,1760167780625,-1000.0,0.00030137,30]
[390807582,1760167780958,-1000.0,0.00030137,30]
[390807583,1760167780984,-1000.0,0.00030137,30]
[390807584,1760167781009,-1000.0,0.00030137,30]
[390807585,1760167781034,-1000.0,0.00030137,30]
[390807586,1760167781061,-1000.0,0.00030137,30]
[390807587,1760167781089,-1000.0,0.00030137,30]
[390807588,1760167781115,-1000.0,0.00030137,30]
[390807589,1760167781141,-1000.0,0.00030137,30]
[390807590,1760167781166,-1000.0,0.00030137,30]
[390807591,1760167781192,-1000.0,0.00030137,30]
[390807592,1760167781216,-1000.0,0.00030137,30]
[390807593,1760167781243,-1000.0,0.00030137,30]
[390807594,1760167781269,-1000.0,0.00030137,30]
[390807595,1760167781296,-1000.0,0.00030137,30]
[390807596,1760167781325,-1000.0,0.00030137,30]
[390807597,1760167781351,-1000.0,0.00030137,30]
[390807598,1760167781378,-1000.0,0.00030137,30]
[390807599,1760167781407,-1000.0,0.00030137,30]
[390807600,1760167781435,-1000.0,0.00030137,30]
[390807601,1760167781461,-1000.0,0.00030137,30]
[390807602,1760167781489,-1000.0,0.00030137,30]
[390807603,1760167781516,-1000.0,0.00030137,30]
[390807604,1760167781544,-1000.0,0.00030137,30]
[390807605,1760167781579,-1000.0,0.00030137,30]
[390807606,1760167781607,-1000.0,0.00030137,30]
[390807607,1760167781634,-1000.0,0.00030137,30]
[390807608,1760167781662,-1000.0,0.00030137,30]
[390807609,1760167781690,-1000.0,0.00030137,30]
[390807610,1760167781718,-1000.0,0.00030137,30]
[390807611,1760167781746,-1000.0,0.00030137,30]
[390807612,1760167781773,-1000.0,0.00030137,30]
[390807613,1760167781801,-1000.0,0.00030137,30]
[390807614,1760167781829,-1000.0,0.00030137,30]
[390807615,1760167781856,-1000.0,0.00030137,30]
[390807616,1760167781885,-1000.0,0.00030137,30]
[390807617,1760167781913,-1000.0,0.00030137,30]
[390807618,1760167781943,-1000.0,0.00030137,30]
[390807619,1760167781969,-1000.0,0.00030137,30]
[390807620,1760167781996,-1000.0,0.00030137,30]
[390807621,1760167782024,-1000.0,0.00030137,30]
[390807622,1760167782050,-1000.0,0.00030137,30]
[390807623,1760167782080,-1000.0,0.00030137,30]
[390807624,1760167782108,-1695.58752177,0.00030137,30]
[390807625,1760167782136,-727.33730544,0.00030137,120]
[390807626,1760167782167,-150.0,0.00030143,120]
[390807627,1760167782194,-201.94233449,0.00030158,120]
[390807628,1760167782223,-222.94892475,0.00030158,120]
[390807629,1760167782252,-2584.48,0.00030162,30]
[390807630,1760167782279,-150.0,0.00030166,120]
[390807631,1760167782306,-150.0,0.00030195,120]
[390807632,1760167782333,-520.67,0.00030273,120]
[390807633,1760167782359,-520.67,0.0003041,120]
[390807634,1760167782387,-520.67,0.00030547,120]
[390807635,1760167782417,-150.0,0.00030565,30]
[390807636,1760167782446,-1435.11599304,0.00030565,30]
[390807637,1760167782473,-184.94612052,0.00030565,30]
[390807638,1760167782499,-150.0,0.00030565,30]
[390807639,1760167782526,-1399.85996516,0.00030565,30]
[390807640,1760167782553,-150.0,0.00030565,30]
[390807641,1760167782580,-19491.42920397,0.00030565,30]
[390807642,1760167782606,-150.0,0.00030565,30]
[390807643,1760167782631,-1998.69140255,0.00030565,30]
[390807644,1760167782659,-50000.0,0.00030684,30]
[390807645,1760167782687,-50000.0,0.00030684,31]
[390807646,1760167782715,-50000.0,0.00030684,32]
[390807647,1760167782744,-50000.0,0.00030684,33]
[390807648,1760167782772,-50000.0,0.00030684,34]
[390807649,1760167782800,-50000.0,0.00030684,35]
[390807650,1760167782829,-50000.0,0.00030684,36]
[390807651,1760167782855,-50000.0,0.00030684,37]
[390807652,1760167782883,-50000.0,0.00030684,38]
[390807653,1760167782911,-50000.0,0.00030684,39]
[390807654,1760167782937,-520.67,0.00030684,120]
[390807655,1760167782975,-2425.57568317,0.00030685,30]
[390807656,1760167783000,-1011.21,0.00030685,30]
[390807657,1760167783026,-1340.05,0.00030685,30]
[390807658,1760167783052,-150.0,0.00030715,120]
[390807659,1760167783079,-520.67,0.00030821,120]
[390807660,1760167783104,-1979.79723618,0.00030888,60]
[390807661,1760167783133,-520.67,0.00030958,120]
[390807662,1760167783162,-150.0,0.00030988,120]
[390807663,1760167783188,-173.0,0.00031,120]
[390807664,1760167783214,-152.0,0.00031,120]
[390807665,1760167783240,-183.65270039,0.00031,120]
[390807666,1760167783267,-201.94233449,0.00031071,120]
[390807667,1760167783294,-520.67,0.00031095,120]
[390807668,1760167783319,-2571.0,0.000311,30]
[390807669,1760167783348,-520.67,0.00031232,120]
[390807670,1760167783374,-520.67,0.00031369,120]
[390807671,1760167783404,-520.67,0.00031506,120]
[390807672,1760167783432,-150.0,0.00031583,120]
[390807673,1760167783460,-3945.72,0.000316,30]
[390807674,1760167783488,-520.67,0.00031643,120]
[390807675,1760167783515,-173.0,0.000317,120]
[390807676,1760167783541,-520.67,0.0003178,120]
[390807677,1760167783567,-378.0,0.00031781,120]
[390807678,1760167783594,-520.67,0.00031917,120]
[390807679,1760167783620,-201.94233449,0.00031984,120]
[390807680,1760167783648,-152.0,0.00032,120]
[390807681,1760167783675,-1769.95188845,0.00032,120]
[390807682,1760167783702,-2733.43598603,0.00032,120]
[390807683,1760167783970,-1500.0,0.00032,120]
[390807684,1760167783997,-520.67,0.00032054,120]
[390807685,1760167784025,-520.67,0.00032191,120]
[390807686,1760167784052,-520.67,0.00032328,120]
[390807687,1760167784079,-173.0,0.000324,120]
[390807688,1760167784105,-520.67,0.00032465,120]
[390807689,1760167784132,-520.67,0.00032602,120]
[390807690,1760167784160,-12991.0,0.00032632,67]
[390807691,1760167784186,-520.67,0.00032739,120]
[390807692,1760167784212,-1933.28238536,0.000328,120]
[390807693,1760167784239,-500.0,0.000328,120]
[390807694,1760167784265,-500.0,0.000328,120]
[390807695,1760167784292,-500.0,0.000328,120]
[390807696,1760167784324,-500.0,0.000328,120]
[390807697,1760167784352,-500.0,0.000328,120]
[390807698,1760167784379,-500.0,0.000328,120]
[390807699,1760167784410,-188.0,0.000328,120]
[390807700,1760167784439,-500.0,0.00032876,120]
[390807701,1760167784468,-454.61544658,0.00032876,120]
[390807702,1760167784497,-520.67,0.00032876,120]
[390807703,1760167784527,-1001.55,0.00032883,60]
[390807704,1760167784556,-201.94233449,0.00032898,120]
[390807705,1760167784583,-1001.55,0.00032983,60]
[390807706,1760167784612,-173.0,0.00033,120]
[390807707,1760167784639,-152.0,0.00033,120]
[390807708,1760167784666,-858.40188827,0.00033,120]
[390807709,1760167784694,-520.67,0.00033013,120]
[390807710,1760167784722,-1001.55,0.00033083,60]
[390807711,1760167784750,-520.67,0.0003315,120]
[390807712,1760167784778,-1001.55,0.00033183,60]
[390807713,1760167784806,-150.0,0.0003322,120]
[390807714,1760167784835,-1001.55,0.00033283,60]
[390807715,1760167784861,-520.6945404,0.00033287,120]
[390807716,1760167784890,-1001.55,0.00033383,60]
[390807717,1760167784917,-588.4747,0.000334,33]
[390807718,1760167784945,-1001.55,0.00033483,60]
[390807719,1760167784975,-1001.55,0.00033583,60]
[390807720,1760167785003,-150.0,0.00033585,120]
[390807721,1760167785030,-1001.55,0.00033683,60]
[390807722,1760167785057,-173.0,0.000337,120]
[390807723,1760167785085,-1001.55,0.00033783,60]
[390807724,1760167785114,-201.94233449,0.00033811,120]
[390807725,1760167785144,-1001.55,0.00033883,60]
[390807726,1760167785171,-152.0,0.000339,120]
[390807727,1760167785199,-150.0,0.00033901,120]
[390807728,1760167785225,-500.0,0.00033939,60]
[390807729,1760167785253,-152.90941915,0.00033939,60]
[390807730,1760167785280,-150.0,0.00033948,120]
[390807731,1760167785308,-255.64158365,0.00033972,30]
[390807732,1760167785336,-1444.0,0.00033973,120]
[390807733,1760167785365,-1001.55,0.00033983,60]
[390807734,1760167785392,-20000.0,0.00034,120]
[390807735,1760167785423,-173.9577039,0.00034,30]
[390807736,1760167785451,-758.02182183,0.00034,120]
[390807737,1760167785482,-1500.0,0.00034,120]
[390807738,1760167785511,-150.0,0.0003402,120]
[390807739,1760167785539,-150.0,0.00034024,120]
[390807740,1760167785566,-150.0,0.00034062,120]
[390807741,1760167785595,-1001.55,0.00034083,60]
[390807742,1760167785622,-1001.55,0.00034183,60]
[390807743,1760167785650,-1001.55,0.00034283,60]
[390807744,1760167785678,-1001.55,0.00034383,60]
[390807745,1760167785706,-173.0,0.000344,120]
[390807746,1760167785738,-1001.55,0.00034483,60]
[390807747,1760167785768,-150.0,0.0003452,30]
[390807748,1760167785801,-1001.55,0.00034583,60]
[390807749,1760167785837,-1001.55,0.00034683,60]
[390807750,1760167785867,-201.94233449,0.00034724,120]
[390807751,1760167785899,-1001.55,0.00034783,60]
[390807752,1760167785928,-500.0,0.00034821,60]
[390807753,1760167785958,-1001.55,0.00034883,60]
[390807754,1760167785985,-9437.82815106,0.000349,30]
[390807755,1760167786013,-152.0,0.000349,120]
[390807756,1760167786042,-214.57134586,0.000349,120]
[390807757,1760167786071,-1001.55,0.00034983,60]
[390807758,1760167786107,-20000.0,0.00035,120]
[390807759,1760167786143,-914.82229795,0.00035,120]
[390807760,1760167786173,-703.33179234,0.00035,120]
[390807761,1760167786201,-2765.0,0.00035,30]
[390807762,1760167786229,-12500.0,0.00035,120]
[390807763,1760167786256,-12500.0,0.00035,120]
[390807764,1760167786284,-12500.0,0.00035,120]
[390807765,1760167786310,-12500.0,0.00035,120]
[390807766,1760167786337,-9209.01,0.00035,120]
[390807767,1760167786364,-3590.63,0.00035,120]
[390807768,1760167786390,-12500.0,0.00035,120]
[390807769,1760167786421,-1910.87,0.00035,120]
[390807770,1760167786448,-12499.99,0.00035,120]
[390807771,1760167786474,-2600.0,0.00035,90]
[390807772,1760167786502,-22500.0,0.00035,120]
[390807773,1760167786531,-234.660093,0.00035,120]
[390807774,1760167786557,-15000.0,0.00035,120]
[390807775,1760167786584,-25000.0,0.00035,120]
[390807776,1760167786610,-15000.0,0.00035,120]
[390807777,1760167786636,-165.02,0.00035,120]
[390807778,1760167786664,-1361.3972886,0.00035,30]
[390807779,1760167786691,-15000.0,0.0003505,120]
[390807780,1760167786719,-12500.0,0.00035062,120]
[390807781,1760167786745,-12500.0,0.00035062,120]
[390807782,1760167786772,-12500.0,0.00035062,120]
[390807783,1760167786800,-298.55,0.00035062,120]
[390807784,1760167786828,-22500.0,0.00035062,120]
[390807785,1760167787084,-150.0,0.00035068,30]
[390807786,1760167787112,-1001.55,0.00035083,60]
[390807787,1760167787141,-173.0,0.000351,120]
[390807789,1760167787169,-15000.0,0.000351,120]
[390807790,1760167787196,-12500.0,0.00035125,120]
[390807791,1760167787224,-22500.0,0.00035125,120]
[390807792,1760167787253,-25000.0,0.00035125,120]
[390807793,1760167787280,-15000.0,0.0003515,120]
[390807794,1760167787308,-1001.55,0.00035183,60]
[390807795,1760167787336,-22500.0,0.00035188,120]
[390807796,1760167787364,-15000.0,0.000352,120]
[390807797,1760167787392,-150.0,0.00035225,120]
[390807798,1760167787421,-22500.0,0.0003525,120]
[390807799,1760167787448,-15000.0,0.0003525,120]
[390807800,1760167787475,-25000.0,0.0003525,120]
[390807801,1760167787503,-14170.8,0.00035263,97]
[390807802,1760167787529,-1001.55,0.00035283,60]
[390807803,1760167787555,-150.0,0.00035287,120]
[390807804,1760167787582,-15000.0,0.000353,120]
[390807805,1760167787608,-22500.0,0.00035313,120]
[390807806,1760167787635,-15000.0,0.0003535,120]
[390807807,1760167787661,-22500.0,0.00035375,120]
[390807808,1760167787686,-1124.08,0.00035375,120]
[390807809,1760167787714,-1001.55,0.00035383,60]
[390807810,1760167787742,-15000.0,0.000354,120]
[390807811,1760167787771,-150.0,0.00035418,120]
[390807812,1760167787801,-150.0,0.0003542,120]
[390807813,1760167787831,-22500.0,0.00035438,120]
[390807814,1760167787860,-15000.0,0.0003545,120]
[390807815,1760167787888,-1001.55,0.00035483,60]
[390807816,1760167787916,-211.82646662,0.000355,120]
[390807817,1760167787946,-22500.0,0.000355,120]
[390807818,1760167787974,-15000.0,0.000355,120]
[390807819,1760167788000,-15000.0,0.0003555,120]
[390807820,1760167788028,-22500.0,0.00035563,120]
[390807821,1760167788055,-150.0,0.00035576,120]
[390807822,1760167788083,-1001.55,0.00035583,60]
[390807823,1760167788110,-150.0,0.00035616,30]
[390807824,1760167788138,-1444.0,0.00035616,30]
[390807825,1760167788166,-150.0,0.00035619,120]
[390807826,1760167788194,-22500.0,0.00035625,120]
[390807827,1760167788222,-201.94233449,0.00035638,120]
[390807828,1760167788249,-2584.48,0.00035639,30]
[390807829,1760167788277,-1001.55,0.00035683,60]
[390807830,1760167788305,-22500.0,0.00035688,120]
[390807831,1760167788333,-173.0,0.000357,120]
[390807832,1760167788361,-500.0,0.00035703,60]
[390807833,1760167788388,-22500.0,0.0003575,120]
[390807834,1760167788420,-1001.55,0.00035783,60]
[390807835,1760167788447,-22500.0,0.00035813,120]
[390807836,1760167788478,-150.0,0.00035816,120]
[390807837,1760167788505,-22500.0,0.00035875,120]
[390807838,1760167788533,-1001.55,0.00035883,60]
[390807839,1760167788559,-3111.8276,0.00035888,30]
[390807840,1760167788586,-152.0,0.000359,120]
[390807841,1760167788616,-150.0,0.00035909,120]
[390807842,1760167788645,-20866.36,0.00035938,120]
[390807843,1760167788674,-1001.55,0.00035983,60]
[390807844,1760167788703,-20000.0,0.00036,120]
[390807845,1760167788732,-1500.0,0.00036,120]
[390807846,1760167788759,-438.0,0.00036,30]
[390807847,1760167788788,-150.0,0.00036042,120]
[390807848,1760167788817,-1001.55,0.00036083,60]
[390807849,1760167788848,-3111.8276,0.00036088,30]
[390807850,1760167788878,-150.0,0.00036161,120]
[390807851,1760167788905,-150.0,0.00036164,30]
[390807852,1760167788932,-150.0,0.00036164,30]
[390807853,1760167788960,-1001.55,0.00036183,60]
[390807854,1760167788987,-150.0,0.00036193,120]
[390807855,1760167789016,-150.0,0.00036267,120]
[390807856,1760167789043,-1001.55,0.00036283,60]
[390807857,1760167789069,-3111.8276,0.00036288,30]
[390807858,1760167789100,-150.0,0.00036355,120]
[390807859,1760167789128,-1001.55,0.00036383,60]
[390807860,1760167789155,-150.0,0.00036388,120]
[390807861,1760167789183,-173.0,0.000364,120]
[390807862,1760167789211,-150.0,0.00036409,120]
[390807863,1760167789240,-438.0,0.00036464,30]
[390807864,1760167789269,-1001.55,0.00036483,60]
[390807865,1760167789297,-3111.8276,0.00036488,30]
[390807866,1760167789324,-220.0,0.00036499,50]
[390807867,1760167789354,-1497.32545975,0.000365,120]
[390807868,1760167789382,-723.89810067,0.000365,50]
[390807869,1760167789413,-220.0,0.00036519,42]
[390807870,1760167789444,-1001.55,0.00036583,60]
[390807871,1760167789470,-500.0,0.00036585,60]
[390807872,1760167789500,-1001.55,0.00036683,60]
[390807873,1760167789526,-3111.8276,0.00036688,30]
[390807874,1760167789555,-565.4446666,0.000367,120]
[390807875,1760167789584,-150.0,0.00036712,30]
[390807876,1760167789611,-150.0,0.00036712,30]
[390807877,1760167789644,-150.0,0.00036757,120]
[390807878,1760167789674,-1001.55,0.00036783,60]
[390807879,1760167789704,-152.22761596,0.000368,30]
[390807880,1760167789730,-154.45523192,0.000368,30]
[390807881,1760167789758,-156.68284788,0.000368,30]
[390807882,1760167789786,-365.85535,0.00036822,30]
[390807883,1760167789816,-1001.55,0.00036883,60]
[390807884,1760167789844,-3111.8276,0.00036888,30]
[390807885,1760167789872,-152.0,0.000369,120]
[390807886,1760167789902,-150.0,0.0003696,120]
[390807887,1760167789934,-150.0,0.00036962,120]
[390807888,1760167790193,-1001.55,0.00036983,60]
[390807889,1760167790259,-20000.0,0.00037,120]
[390807890,1760167790288,-15000.0,0.00037,120]
[390807891,1760167790315,-3201.18247644,0.00037,120]
[390807892,1760167790344,-2578.30203424,0.00037,120]
[390807893,1760167790373,-1001.55,0.00037083,60]
[390807894,1760167790401,-3111.8276,0.00037088,30]
[390807895,1760167790435,-173.0,0.000371,120]
[390807896,1760167790464,-150.0,0.00037165,120]
[390807897,1760167790492,-150.0,0.00037172,120]
[390807898,1760167790518,-1001.55,0.00037183,60]
[390807899,1760167790544,-3109.76551924,0.00037212,120]
[390807900,1760167790570,-150.0,0.0003726,30]
[390807901,1760167790597,-150.0,0.0003726,30]
[390807902,1760167790624,-150.0,0.00037282,120]
[390807903,1760167790651,-1001.55,0.00037283,60]
[390807904,1760167790677,-3111.8276,0.00037288,30]
[390807905,1760167790706,-150.0,0.00037315,120]
[390807906,1760167790734,-150.0,0.00037321,120]
[390807907,1760167790763,-150.0,0.00037327,120]
[390807908,1760167790792,-1001.55,0.00037383,60]
[390807909,1760167790821,-500.0,0.00037467,60]
[390807910,1760167790851,-1002.11,0.00037483,60]
[390807911,1760167790891,-3111.8276,0.00037488,30]
[390807912,1760167790922,-3111.8276,0.00037688,30]
[390807913,1760167790951,-4431.77,0.000377,120]
[390807914,1760167790980,-173.0,0.000378,120]
[390807915,1760167791007,-150.0,0.00037808,30]
[390807916,1760167791034,-150.0,0.00037808,30]
[390807917,1760167791062,-657.92929977,0.00037824,30]
[390807918,1760167791090,-3111.8276,0.00037888,30]
[390807919,1760167791117,-15353.0,0.00037895,117]
[390807920,1760167791146,-152.0,0.000379,120]
[390807921,1760167791175,-2894.0,0.00037978,40]
[390807922,1760167791203,-765.58359343,0.00037999,120]
[390807923,1760167791231,-438.0,0.00038,30]
[390807924,1760167791259,-37647.93871864,0.00038,120]
[390807925,1760167791288,-40000.0,0.00038,120]
[390807926,1760167791317,-20000.0,0.00038,120]
[390807927,1760167791351,-272.32193042,0.00038,120]
[390807928,1760167791382,-3139.0,0.00038,120]
[390807929,1760167791416,-1864.09957215,0.00038,120]
[390807930,1760167791447,-1500.0,0.00038,120]
[390807931,1760167791483,-150.0,0.00038037,120]
[390807932,1760167791515,-3111.8276,0.00038088,30]
[390807933,1760167791547,-150.0,0.00038118,120]
[390807934,1760167791576,-150.0,0.0003817,120]
[390807935,1760167791611,-150.0,0.00038217,120]
[390807936,1760167791640,-3111.8276,0.00038288,30]
[390807937,1760167791669,-150.0,0.00038299,120]
[390807938,1760167791697,-220.0,0.00038349,30]
[390807939,1760167791724,-151.0,0.00038349,30]
[390807940,1760167791752,-311.1,0.00038349,30]
[390807941,1760167791780,-500.0,0.0003835,60]
[390807942,1760167791809,-1000.0,0.00038355,30]
[390807943,1760167791843,-160.0,0.00038355,30]
[390807944,1760167791873,-2000.0,0.00038355,30]
[390807945,1760167791903,-151.0,0.00038355,30]
[390807946,1760167791933,-1000.0,0.00038355,30]
[390807947,1760167791963,-300.0,0.00038355,30]
[390807948,1760167791992,-160.0,0.00038355,30]
[390807949,1760167792022,-1000.0,0.00038355,30]
[390807951,1760167792051,-2000.0,0.00038355,30]
[390807952,1760167792082,-1000.0,0.00038355,30]
[390807953,1760167792112,-151.0,0.00038355,30]
[390807954,1760167792144,-300.0,0.00038355,30]
[390807955,1760167792174,-160.0,0.00038355,30]
[390807956,1760167792204,-1000.0,0.00038355,30]
[390807957,1760167792236,-1000.0,0.00038355,30]
[390807958,1760167792267,-2000.0,0.00038355,30]
[390807959,1760167792296,-151.0,0.00038355,30]
[390807960,1760167792325,-300.0,0.00038355,30]
[390807961,1760167792361,-1000.0,0.00038355,30]
[390807962,1760167792390,-160.0,0.00038355,30]
[390807963,1760167792422,-151.0,0.00038355,30]
[390807964,1760167792453,-2000.0,0.00038355,30]
[390807965,1760167792482,-300.0,0.00038355,30]
[390807966,1760167792512,-1000.0,0.00038355,30]
[390807967,1760167792541,-220.0,0.00038355,30]
[390807968,1760167792570,-1000.0,0.00038355,30]
[390807969,1760167792601,-160.0,0.00038355,30]
[390807970,1760167792630,-2000.0,0.00038355,30]
[390807971,1760167792661,-151.0,0.00038355,30]
[390807972,1760167792693,-300.0,0.00038355,30]
[390807973,1760167792725,-6888.0,0.00038355,30]
[390807974,1760167792754,-1000.0,0.00038355,30]
[390807975,1760167792783,-500.0,0.00038355,30]
[390807976,1760167792812,-151.0,0.00038355,30]
[390807977,1760167792847,-1000.0,0.00038355,30]
[390807978,1760167792876,-160.0,0.00038355,30]
[390807979,1760167792904,-151.0,0.00038355,30]
[390807980,1760167792933,-2000.0,0.00038355,30]
[390807981,1760167792960,-7142.856,0.00038355,30]
[390807982,1760167792989,-300.0,0.00038355,30]
[390807983,1760167793018,-1000.0,0.00038355,30]
[390807984,1760167793049,-518.5,0.00038355,30]
[390807985,1760167793079,-156.587,0.00038355,30]
[390807986,1760167793113,-7407.141672,0.00038355,30]
[390807987,1760167793140,-537.6845,0.00038355,30]
[390807988,1760167793169,-162.380719,0.00038355,30]
[390807989,1760167793199,-7681.20591386,0.00038355,30]
[390807990,1760167793227,-557.5788265,0.00038355,30]
[390807991,1760167793256,-168.3888056,0.00038355,30]
[390807992,1760167793700,-7965.41053268,0.00038355,30]
[390807993,1760167793729,-578.20924308,0.00038355,30]
[390807994,1760167793756,-174.61919141,0.00038355,30]
[390807995,1760167793784,-8260.13072239,0.00038355,30]
[390807996,1760167793813,-181.08010149,0.00038355,30]
[390807997,1760167793844,-599.60298507,0.00038355,30]
[390807998,1760167793873,-500.0,0.00038355,30]
[390807999,1760167793903,-151.0,0.00038355,30]
[390808000,1760167793934,-500.0,0.00038355,30]
[390808001,1760167793962,-151.0,0.00038355,30]
[390808002,1760167793992,-151.0,0.00038355,30]
[390808003,1760167794020,-500.0,0.00038355,30]
[390808004,1760167794048,-151.0,0.00038355,30]
[390808005,1760167794077,-151.0,0.00038355,30]
[390808006,1760167794108,-151.0,0.00038355,30]
[390808007,1760167794137,-151.0,0.00038355,30]
[390808008,1760167794165,-500.0,0.00038355,30]
[390808009,1760167794193,-520.0,0.00038355,30]
[390808010,1760167794220,-151.0,0.00038355,30]
[390808011,1760167794248,-151.0,0.00038355,30]
[390808012,1760167794276,-500.0,0.00038355,30]
[390808013,1760167794303,-151.0,0.00038355,30]
[390808014,1760167794330,-500.0,0.00038355,30]
[390808015,1760167794361,-151.0,0.00038355,30]
[390808016,1760167794391,-539.24,0.00038355,30]
[390808017,1760167794423,-151.0,0.00038355,30]
[390808018,1760167794451,-500.0,0.00038355,30]
[390808019,1760167794480,-559.19188,0.00038355,30]
[390808020,1760167794509,-500.0,0.00038355,30]
[390808021,1760167794536,-151.0,0.00038355,30]
[390808022,1760167794562,-579.88197956,0.00038355,30]
[390808023,1760167794592,-500.0,0.00038355,30]
[390808024,1760167794619,-601.3376128,0.00038355,30]
[390808025,1760167794648,-500.0,0.00038355,30]
[390808026,1760167794677,-623.58710448,0.00038355,30]
[390808027,1760167794704,-500.0,0.00038355,30]
[390808028,1760167794733,-300.0,0.00038355,30]
[390808029,1760167794761,-500.0,0.00038355,30]
[390808030,1760167794789,-1000.0,0.00038355,30]
[390808031,1760167794817,-1000.0,0.00038355,30]
[390808032,1760167794845,-1000.0,0.00038355,30]
[390808033,1760167794875,-1000.0,0.00038355,30]
[390808034,1760167794904,-500.0,0.00038355,30]
[390808035,1760167794935,-1000.0,0.00038355,30]
[390808036,1760167794964,-1000.0,0.00038355,30]
[390808037,1760167794991,-500.0,0.00038355,30]
[390808038,1760167795020,-1000.0,0.00038355,30]
[390808039,1760167795048,-1000.0,0.00038355,30]
[390808040,1760167795076,-500.0,0.00038355,30]
[390808041,1760167795108,-1000.0,0.00038355,30]
[390808042,1760167795136,-500.0,0.00038355,30]
[390808043,1760167795163,-1000.0,0.00038355,30]
[390808044,1760167795191,-500.0,0.00038355,30]
[390808045,1760167795219,-1000.0,0.00038355,30]
[390808046,1760167795248,-500.0,0.00038355,30]
[390808047,1760167795276,-1000.0,0.00038355,30]
[390808048,1760167795303,-500.0,0.00038355,30]
[390808049,1760167795329,-500.0,0.00038355,30]
[390808050,1760167795359,-500.0,0.00038355,30]
[390808051,1760167795386,-500.0,0.00038355,30]
[390808052,1760167795415,-500.0,0.00038355,30]
[390808053,1760167795441,-500.0,0.00038355,30]
[390808054,1760167795472,-500.0,0.00038355,30]
[390808055,1760167795503,-500.0,0.00038355,30]
[390808056,1760167795532,-500.0,0.00038355,30]
[390808057,1760167795559,-500.0,0.00038355,30]
[390808058,1760167795590,-200.0,0.00038355,30]